fUST/lending_fUST_20250224
["ID","MTS","AMOUNT","RATE_DAILY","PERIOD"]
[354243795,1740363032672,-164.70508054,0.00013698,2]
[354243798,1740363032684,-336.39123133,0.00013698,2]
[354243800,1740363032693,-503.52225385,0.00013698,2]
[354243802,1740363032702,-503.78640779,0.00013698,2]
[354243804,1740363032711,-500.0,0.00013698,2]
[354243806,1740363032721,-500.0,0.00013698,2]
[354243808,1740363032730,-500.0,0.00013698,2]
[354243810,1740363032741,-500.0,0.00013698,2]
[354243812,1740363032750,-525.62326629,0.00013698,2]
[354243814,1740363032760,-500.0,0.00013698,2]
[354243816,1740363032770,-503.93445712,0.00013698,2]
[354243818,1740363032780,-291.85,0.00013698,2]
[354243819,1740363032790,-625.02,0.00013698,2]
[354243820,1740363032799,-500.0,0.00013698,2]
[354243821,1740363032809,-500.0,0.00013698,2]
[354243823,1740363032819,-500.0,0.00013698,2]
[354243824,1740363032828,-500.0,0.00013698,2]
[354243825,1740363032839,-285.15,0.00013698,2]
[354243826,1740363032849,-502.23475143,0.00013698,2]
[354243828,1740363032858,-624.82504509,0.00013698,2]
[354243830,1740363032867,-500.0,0.00013698,2]
[354243832,1740363032876,-502.78128536,0.00013698,2]
[354243834,1740363032886,-503.66893484,0.00013698,2]
[354243836,1740363032895,-630.69971318,0.00013698,2]
[354243838,1740363032904,-500.0,0.00013698,2]
[354243840,1740363032913,-451.46522005,0.00013698,2]
[354243842,1740363032922,-500.0,0.00013698,2]
[354243844,1740363032932,-570.69020474,0.00013698,2]
[354243846,1740363032941,-500.0,0.00013698,2]
[354243848,1740363032950,-504.8405415,0.00013698,2]
[354243850,1740363032959,-500.0,0.00013698,2]
[354243852,1740363032968,-503.06882809,0.00013698,2]
[354243854,1740363032977,-503.32475969,0.00013698,2]
[354243856,1740363032986,-500.0,0.00013698,2]
[354243858,1740363032995,-504.19034002,0.00013698,2]
[354243860,1740363033004,-500.0,0.00013698,2]
[354243862,1740363033013,-507.53119987,0.00013698,2]
[354243863,1740363033023,-501.83516918,0.00013698,2]
[354243864,1740363033031,-500.55295028,0.00013698,2]
[354243865,1740363033041,-500.0,0.00013698,2]
[354243866,1740363033050,-500.0,0.00013698,2]
[354243867,1740363033059,-500.0,0.00013698,2]
[354243868,1740363033069,-500.0,0.00013698,2]
[354243869,1740363033078,-502.15124788,0.00013698,2]
[354243870,1740363033088,-500.0,0.00013698,2]
[354243871,1740363033098,-212.9032255,0.00013699,2]
[354243872,1740363033107,-178.617865,0.00013699,2]
[354243873,1740363033117,-500.0,0.00013779,2]
[354243874,1740363033127,-500.0,0.00013779,2]
[354243875,1740363033136,-500.0,0.00013779,2]
[354243876,1740363033146,-256.46250226,0.00013779,2]
[354243877,1740363033155,-500.0,0.00013779,2]
[354243878,1740363033165,-500.0,0.00013779,2]
[354243879,1740363033174,-500.0,0.00013779,2]
[354243880,1740363033184,-500.0,0.00013779,2]
[354243881,1740363033195,-500.0,0.00013779,2]
[354243882,1740363033204,-504.32928923,0.00013779,2]
[354243883,1740363033214,-500.0,0.00013779,2]
[354243884,1740363033223,-503.68,0.00013779,2]
[354243885,1740363033233,-502.399951,0.00013779,2]
[354243886,1740363033242,-500.0,0.00013779,2]
[354243887,1740363033252,-500.0,0.00013779,2]
[354243888,1740363033261,-500.0,0.00013779,2]
[354243890,1740363033271,-500.0,0.00013779,2]
[354243891,1740363033281,-500.0,0.00013779,2]
[354243893,1740363033291,-500.0,0.00013779,2]
[354243895,1740363033301,-502.83773026,0.00013779,2]
[354243897,1740363033311,-502.73138744,0.00013779,2]
[354243899,1740363033321,-500.0,0.00013779,2]
[354243901,1740363033330,-500.0,0.00013779,2]
[354243904,1740363033341,-500.0,0.00013779,2]
[354243906,1740363033351,-500.0,0.00013779,2]
[354243908,1740363033362,-500.0,0.00013779,2]
[354243910,1740363033373,-500.0,0.00013779,2]
[354243912,1740363033383,-500.0,0.00013779,2]
[354243914,1740363033392,-500.0,0.00013779,2]
[354243916,1740363033402,-500.0,0.00013779,2]
[354243918,1740363033413,-500.0,0.00013779,2]
[354243920,1740363033423,-500.0,0.00013779,2]
[354243922,1740363033434,-500.0,0.00013779,2]
[354243924,1740363033444,-503.34391989,0.00013779,2]
[354243926,1740363033455,-500.0,0.00013779,2]
[354243928,1740363033465,-503.51080131,0.00013779,2]
[354243930,1740363033475,-500.0,0.00013779,2]
[354243932,1740363033484,-504.19793809,0.00013779,2]
[354243934,1740363033495,-501.02418572,0.00013779,2]
[354243936,1740363033505,-500.0,0.00013779,2]
[354243938,1740363033516,-504.20870514,0.00013779,2]
[354243940,1740363033525,-304.51656729,0.00013779,2]
[354243942,1740363033535,-501.49513331,0.00013779,2]
[354243944,1740363033544,-501.76852464,0.00013779,2]
[354243946,1740363033553,-500.0,0.00013779,2]
[354243948,1740363033563,-508.81813181,0.00013779,2]
[354243950,1740363033576,-500.5628541,0.00013779,2]
[354243952,1740363033586,-501.14401939,0.00013779,2]
[354243954,1740363033596,-502.31784008,0.00013779,2]
[354243956,1740363033605,-500.0,0.00013779,2]
[354243958,1740363033616,-501.61113747,0.00013779,2]
[354243960,1740363033626,-500.0,0.00013779,2]
[354243962,1740363033636,-501.12498171,0.00013779,2]
[354243964,1740363033647,-501.14563415,0.00013779,2]
[354243966,1740363033657,-500.0,0.00013779,2]
[354243968,1740363033666,-500.0,0.00013779,2]
[354243970,1740363033676,-500.0,0.00013779,2]
[354243972,1740363033686,-373.32124718,0.00013779,2]
[354243975,1740363033699,-123.09839571,0.00013779,2]
[354243977,1740363033709,-500.0,0.00013779,2]
[354243979,1740363033719,-500.0,0.00013779,2]
[354243981,1740363033728,-500.0,0.00013779,2]
[354243983,1740363033738,-500.0,0.00013779,2]
[354243985,1740363033747,-500.0,0.00013779,2]
[354243987,1740363033757,-501.64467666,0.00013779,2]
[354243989,1740363033766,-503.59552968,0.00013779,2]
[354243991,1740363033775,-503.20686269,0.00013779,2]
[354243993,1740363033785,-500.0,0.00013779,2]
[354243995,1740363033794,-500.0,0.00013779,2]
[354243997,1740363033804,-500.0,0.00013779,2]
[354243999,1740363033813,-500.0,0.00013779,2]
[354244001,1740363033822,-500.0,0.00013779,2]
[354244003,1740363033832,-500.0,0.00013779,2]
[354244005,1740363033843,-500.0,0.00013779,2]
[354244007,1740363033852,-500.0,0.00013779,2]
[354244009,1740363033862,-500.0,0.00013779,2]
[354244010,1740363033871,-500.0,0.00013779,2]
[354244013,1740363033881,-500.0,0.00013779,2]
[354244014,1740363033891,-501.31255764,0.00013779,2]
[354244016,1740363033901,-500.0,0.00013779,2]
[354244019,1740363033910,-500.0,0.00013779,2]
[354244021,1740363033920,-525.46422586,0.00013779,2]
[354244022,1740363033929,-500.0,0.00013779,2]
[354244025,1740363033939,-501.43592678,0.00013779,2]
[354244027,1740363033949,-500.0,0.00013779,2]
[354244029,1740363033959,-500.0,0.00013779,2]
[354244031,1740363033968,-503.42185983,0.00013779,2]
[354244033,1740363033978,-500.0,0.00013779,2]
[354244035,1740363033987,-500.80003311,0.00013779,2]
[354244037,1740363033997,-500.0,0.00013779,2]
[354244039,1740363034006,-500.67316062,0.00013779,2]
[354244040,1740363034016,-502.97800807,0.00013779,2]
[354244042,1740363034025,-500.0,0.00013779,2]
[354244045,1740363034035,-500.0,0.00013779,2]
[354244046,1740363034044,-500.0,0.00013779,2]
[354244048,1740363034054,-500.57555069,0.00013779,2]
[354244051,1740363034064,-500.0,0.00013779,2]
[354244052,1740363034074,-500.0,0.00013779,2]
[354244054,1740363034083,-148.06326381,0.00013779,2]
[354244057,1740363034096,-351.93673619,0.00013779,2]
[354244059,1740363034106,-500.66881057,0.00013779,2]
[354244061,1740363034116,-502.73090002,0.00013779,2]
[354244063,1740363034126,-506.37891652,0.00013779,2]
[354244065,1740363034135,-500.0,0.00013779,2]
[354244067,1740363034145,-500.0,0.00013779,2]
[354244069,1740363034155,-500.0,0.00013779,2]
[354244071,1740363034164,-1397.16,0.00013779,2]
[354244073,1740363034174,-502.11117341,0.00013779,2]
[354244075,1740363034184,-500.0,0.00013779,2]
[354244077,1740363034193,-500.0,0.00013779,2]
[354244079,1740363034203,-500.0,0.00013779,2]
[354244081,1740363034213,-500.0,0.00013779,2]
[354244083,1740363034222,-500.0,0.00013779,2]
[354244085,1740363034232,-500.0,0.00013779,2]
[354244087,1740363034241,-505.70872078,0.00013779,2]
[354244089,1740363034251,-501.1200673,0.00013779,2]
[354244091,1740363034260,-507.97747735,0.00013779,2]
[354244093,1740363034270,-500.0,0.00013779,2]
[354244095,1740363034279,-500.0,0.00013779,2]
[354244097,1740363034289,-500.0,0.00013779,2]
[354244099,1740363034299,-501.63963093,0.00013779,2]
[354244101,1740363034308,-500.0,0.00013779,2]
[354244103,1740363034317,-501.69974042,0.00013779,2]
[354244105,1740363034327,-500.0,0.00013779,2]
[354244107,1740363034336,-500.0,0.00013779,2]
[354244109,1740363034346,-500.0,0.00013779,2]
[354244111,1740363034357,-502.05843291,0.00013779,2]
[354244113,1740363034367,-500.0,0.00013779,2]
[354244115,1740363034376,-500.0,0.00013779,2]
[354244117,1740363034386,-500.0,0.00013779,2]
[354244119,1740363034396,-500.0,0.00013779,2]
[354244121,1740363034407,-500.0,0.00013779,2]
[354244123,1740363034420,-500.0,0.00013779,2]
[354244125,1740363034431,-500.0,0.00013779,2]
[354244127,1740363034442,-502.06889383,0.00013779,2]
[354244129,1740363034452,-500.0,0.00013779,2]
[354244131,1740363034463,-496.52223247,0.00013779,2]
[354244133,1740363034473,-505.51261491,0.00013779,2]
[354244135,1740363034484,-2315.96,0.00013779,2]
[354244137,1740363034494,-500.0,0.00013779,2]
[354244139,1740363034506,-500.0,0.00013779,2]
[354244141,1740363034518,-502.52226434,0.00013779,2]
[354244143,1740363034528,-500.0,0.00013779,2]
[354244145,1740363034539,-500.0,0.00013779,2]
[354244147,1740363034550,-632.8725754,0.00013779,2]
[354244148,1740363034561,-501.93996012,0.00013779,2]
[354244152,1740363034574,-500.0,0.00013779,2]
[354244156,1740363034682,-500.4748043,0.00013779,2]
[354244158,1740363034692,-500.0,0.00013779,2]
[354244160,1740363034702,-500.0,0.00013779,2]
[354244161,1740363034711,-500.0,0.00013779,2]
[354244164,1740363034721,-512.89990071,0.00013779,2]
[354244166,1740363034731,-500.0,0.00013779,2]
[354244167,1740363034741,-500.0,0.00013779,2]
[354244169,1740363034750,-501.72349443,0.00013779,2]
[354244171,1740363034760,-501.83567698,0.00013779,2]
[354244173,1740363034769,-500.0,0.00013779,2]
[354244175,1740363034779,-500.0,0.00013779,2]
[354244177,1740363034789,-500.0,0.00013779,2]
[354244179,1740363034799,-501.53836977,0.00013779,2]
[354244181,1740363034808,-500.0,0.00013779,2]
[354244183,1740363034818,-500.0,0.00013779,2]
[354244186,1740363034829,-500.0,0.00013779,2]
[354244188,1740363034840,-500.0,0.00013779,2]
[354244190,1740363034849,-500.0,0.00013779,2]
[354244192,1740363034860,-500.0,0.00013779,2]
[354244194,1740363034869,-500.0,0.00013779,2]
[354244196,1740363034879,-205.79250616,0.00013779,2]
[354244198,1740363034889,-500.0,0.00013779,2]
[354244199,1740363034898,-500.88423736,0.00013779,2]
[354244201,1740363034908,-522.13160148,0.00013779,2]
[354244203,1740363034917,-500.0,0.00013779,2]
[354244205,1740363034927,-500.0,0.00013779,2]
[354244207,1740363034936,-500.0,0.00013779,2]
[354244210,1740363034946,-500.0,0.00013779,2]
[354244211,1740363034956,-500.0,0.00013779,2]
[354244213,1740363034965,-500.0,0.00013779,2]
[354244215,1740363034975,-788.14,0.00013779,2]
[354244217,1740363034985,-500.0,0.00013779,2]
[354244219,1740363034994,-500.0,0.00013779,2]
[354244221,1740363035004,-500.0,0.00013779,2]
[354244223,1740363035013,-575.85877816,0.00013779,2]
[354244225,1740363035022,-501.48113455,0.00013779,2]
[354244227,1740363035031,-500.0,0.00013779,2]
[354244229,1740363035040,-500.0,0.00013779,2]
[354244231,1740363035050,-504.03377709,0.00013779,2]
[354244233,1740363035060,-500.0,0.00013779,2]
[354244235,1740363035070,-503.07784803,0.00013779,2]
[354244237,1740363035080,-500.0,0.00013779,2]
[354244239,1740363035094,-500.0,0.00013779,2]
[354244241,1740363035104,-500.0,0.00013779,2]
[354244243,1740363035113,-500.0,0.00013779,2]
[354244244,1740363035122,-1112.53,0.00013779,2]
[354244246,1740363035131,-501.19297094,0.00013779,2]
[354244248,1740363035141,-500.0,0.00013779,2]
[354244250,1740363035150,-500.0,0.00013779,2]
[354244252,1740363035159,-500.0,0.00013779,2]
[354244254,1740363035169,-500.0,0.00013779,2]
[354244256,1740363035178,-253.54271954,0.00013779,2]
[354244258,1740363035187,-500.0,0.00013779,2]
[354244260,1740363035198,-500.0,0.00013779,2]
[354244263,1740363035207,-500.0,0.00013779,2]
[354244265,1740363035217,-508.24457383,0.00013779,2]
[354244267,1740363035227,-507.7055616,0.00013779,2]
[354244269,1740363035237,-500.55981191,0.00013779,2]
[354244271,1740363035250,-437.77467859,0.00013779,2]
[354244273,1740363035259,-500.0,0.00013779,2]
[354244275,1740363035269,-500.0,0.00013779,2]
[354244277,1740363035278,-500.69976182,0.00013779,2]
[354244279,1740363035287,-503.64067618,0.00013779,2]
[354244281,1740363035296,-501.17787457,0.00013779,2]
[354244283,1740363035306,-504.80679544,0.00013779,2]
[354244285,1740363035315,-500.0,0.00013779,2]
[354244287,1740363035324,-501.42877438,0.00013779,2]
[354244289,1740363035334,-501.72463955,0.00013779,2]
[354244291,1740363035344,-505.1937361,0.00013779,2]
[354244293,1740363035354,-500.0,0.00013779,2]
[354244295,1740363035364,-501.37852607,0.00013779,2]
[354244297,1740363035373,-500.0,0.00013779,2]
[354244299,1740363035383,-500.0,0.00013779,2]
[354244301,1740363035392,-500.0,0.00013779,2]
[354244303,1740363035402,-500.0,0.00013779,2]
[354244305,1740363035411,-601.97906515,0.00013779,2]
[354244307,1740363035421,-500.0,0.00013779,2]
[354244309,1740363035431,-500.0,0.00013779,2]
[354244311,1740363035440,-500.0,0.00013779,2]
[354244313,1740363035449,-500.0,0.00013779,2]
[354244315,1740363035459,-500.0,0.00013779,2]
[354244317,1740363035470,-500.0,0.00013779,2]
[354244319,1740363035479,-500.0,0.00013779,2]
[354244321,1740363035488,-500.57784508,0.00013779,2]
[354244323,1740363035498,-500.0,0.00013779,2]
[354244325,1740363035507,-500.0,0.00013779,2]
[354244327,1740363035516,-500.0,0.00013779,2]
[354244329,1740363035525,-500.0,0.00013779,2]
[354244331,1740363035534,-500.0,0.00013779,2]
[354244333,1740363035543,-502.22995548,0.00013779,2]
[354244335,1740363035552,-500.0,0.00013779,2]
[354244336,1740363035561,-500.0,0.00013779,2]
[354244338,1740363035573,-500.0,0.00013779,2]
[354244340,1740363035582,-503.46720183,0.00013779,2]
[354244343,1740363035593,-501.1355519,0.00013779,2]
[354244345,1740363035602,-502.89715542,0.00013779,2]
[354244347,1740363035612,-500.0,0.00013779,2]
[354244349,1740363035622,-500.9627898,0.00013779,2]
[354244351,1740363035631,-500.0,0.00013779,2]
[354244353,1740363035640,-500.0,0.00013779,2]
[354244355,1740363035650,-501.76502966,0.00013779,2]
[354244357,1740363035659,-500.0,0.00013779,2]
[354244359,1740363035668,-501.47911083,0.00013779,2]
[354244361,1740363035678,-500.0,0.00013779,2]
[354244363,1740363035687,-500.0,0.00013779,2]
[354244365,1740363035697,-500.0,0.00013779,2]
[354244367,1740363035706,-500.0,0.0001378,2]
[354244368,1740363035716,-500.0,0.0001378,2]
[354244370,1740363035725,-500.0,0.0001378,2]
[354244372,1740363035734,-500.0,0.0001378,2]
[354244374,1740363035744,-500.0,0.0001378,2]
[354244376,1740363035753,-500.0,0.0001378,2]
[354244379,1740363035764,-1000.0,0.000138,2]
[354244380,1740363035773,-1000.0,0.000138,3]
[354244382,1740363035783,-1000.0,0.000138,4]
[354244384,1740363035792,-500.0,0.0001386,2]
[354244386,1740363035801,-500.0,0.0001386,2]
[354244388,1740363035810,-264.84638948,0.0001386,2]
[354244390,1740363035823,-500.0,0.0001386,2]
[354244392,1740363035832,-500.0,0.0001386,2]
[354244394,1740363035843,-500.0,0.0001386,2]
[354244396,1740363035853,-500.0,0.0001386,2]
[354244398,1740363035862,-500.0,0.0001386,2]
[354244400,1740363035871,-551.61465767,0.0001386,2]
[354244402,1740363035881,-500.0,0.0001386,2]
[354244404,1740363035890,-500.0,0.0001386,2]
[354244406,1740363035899,-500.0,0.0001386,2]
[354244408,1740363035908,-500.0,0.0001386,2]
[354244410,1740363035917,-500.0,0.0001386,2]
[354244412,1740363035926,-500.0,0.0001386,2]
[354244415,1740363035937,-215.30251874,0.0001386,2]
[354244417,1740363035947,-500.0,0.0001386,2]
[354244419,1740363035956,-500.0,0.0001386,2]
[354244421,1740363035966,-500.0,0.0001386,2]
[354244423,1740363035977,-500.0,0.0001386,2]
[354244425,1740363035986,-500.0,0.0001386,2]
[354244427,1740363035996,-500.0,0.0001386,2]
[354244429,1740363036005,-500.0,0.0001386,2]
[354244431,1740363036014,-500.0,0.0001386,2]
[354244433,1740363036024,-500.0,0.0001386,2]
[354244435,1740363036033,-386.30014417,0.0001386,2]
[354244437,1740363036042,-500.0,0.0001386,2]
[354244439,1740363036051,-500.0,0.0001386,2]
[354244440,1740363036060,-500.0,0.0001386,2]
[354244442,1740363036069,-500.0,0.0001386,2]
[354244444,1740363036079,-500.0,0.0001386,2]
[354244446,1740363036090,-500.0,0.0001386,2]
[354244448,1740363036099,-500.0,0.0001386,2]
[354244450,1740363036108,-500.0,0.0001386,2]
[354244452,1740363036117,-500.0,0.0001386,2]
[354244454,1740363036126,-500.0,0.0001386,2]
[354244456,1740363036135,-402.30010932,0.0001386,2]
[354244458,1740363036144,-500.0,0.0001386,2]
[354244460,1740363036153,-500.0,0.0001386,2]
[354244462,1740363036163,-500.0,0.0001386,2]
[354244464,1740363036172,-500.0,0.0001386,2]
[354244466,1740363036182,-500.0,0.0001386,2]
[354244468,1740363036191,-500.0,0.0001386,2]
[354244470,1740363036201,-500.0,0.0001386,2]
[354244472,1740363036210,-500.0,0.0001386,2]
[354244474,1740363036219,-500.0,0.0001386,2]
[354244476,1740363036229,-500.0,0.0001386,2]
[354244478,1740363036239,-500.0,0.0001386,2]
[354244480,1740363036248,-500.0,0.0001386,2]
[354244482,1740363036257,-500.0,0.0001386,2]
[354244484,1740363036266,-500.0,0.0001386,2]
[354244486,1740363036275,-500.0,0.0001386,2]
[354244488,1740363036284,-500.0,0.0001386,2]
[354244490,1740363036294,-500.0,0.0001386,2]
[354244492,1740363036303,-500.0,0.0001386,2]
[354244494,1740363036312,-500.0,0.0001386,2]
[354244496,1740363036321,-500.0,0.0001386,2]
[354244498,1740363036331,-299.99999999,0.0001386,2]
[354244500,1740363036340,-500.0,0.0001386,2]
[354244502,1740363036349,-500.0,0.0001386,2]
[354244504,1740363036358,-500.0,0.0001386,2]
[354244506,1740363036367,-500.0,0.0001386,2]
[354244508,1740363036376,-520.70107887,0.0001386,2]
[354244510,1740363036385,-500.0,0.0001386,2]
[354244512,1740363036394,-500.0,0.0001386,2]
[354244514,1740363036403,-500.0,0.0001386,2]
[354244516,1740363036412,-650.0,0.0001386,2]
[354244518,1740363036422,-500.0,0.00013861,2]
[354244520,1740363036431,-500.0,0.00013861,2]
[354244522,1740363036440,-405.0919348,0.00013861,2]
[354244524,1740363036450,-515.40916496,0.00013861,2]
[354244526,1740363036459,-513.00280615,0.00013861,2]
[354244528,1740363036468,-504.1709706,0.00013861,2]
[354244530,1740363036478,-511.98604192,0.00013861,2]
[354244531,1740363036487,-437.39282925,0.00013861,2]
[354244532,1740363036496,-500.0,0.00013861,2]
[354244533,1740363036505,-500.0,0.00013861,2]
[354244534,1740363036515,-500.0,0.00013861,2]
[354244535,1740363036524,-500.0,0.00013861,2]
[354244536,1740363036533,-507.38541221,0.00013861,2]
[354244537,1740363036542,-503.45399635,0.00013861,2]
[354244538,1740363036551,-500.0,0.00013861,2]
[354244539,1740363036560,-500.0,0.00013861,2]
[354244540,1740363036571,-500.0,0.00013861,2]
[354244541,1740363036581,-500.0,0.00013861,2]
[354244542,1740363036591,-507.30537711,0.00013861,2]
[354244543,1740363036599,-505.62264338,0.00013861,2]
[354244544,1740363036609,-500.0,0.00013861,2]
[354244545,1740363036619,-500.0,0.00013861,2]
[354244546,1740363036629,-500.0,0.00013861,2]
[354244547,1740363036638,-502.76239077,0.00013861,2]
[354244548,1740363036649,-500.0,0.00013861,2]
[354244549,1740363036658,-245.9810937,0.00013861,2]
[354244550,1740363036667,-589.42618686,0.00013861,2]
[354244551,1740363036676,-295.67717216,0.00013861,2]
[354244552,1740363036692,-204.32282784,0.00013861,2]
[354244553,1740363036701,-500.0,0.00013861,2]
[354244554,1740363036711,-500.0,0.00013861,2]
[354244555,1740363036719,-510.49319977,0.00013861,2]
[354244556,1740363036728,-500.0,0.00013861,2]
[354244557,1740363036738,-500.0,0.00013861,2]
[354244558,1740363036747,-305.80653779,0.00013861,2]
[354244559,1740363036757,-500.0,0.00013861,2]
[354244560,1740363036766,-352.43254985,0.00013861,2]
[354244561,1740363036777,-147.56745015,0.00013861,2]
[354244562,1740363036786,-155.22550983,0.00013861,2]
[354244564,1740363036798,-344.77449017,0.00013861,2]
[354244566,1740363036806,-385.42027778,0.00013861,2]
[354244568,1740363036818,-118.9869985,0.00013861,2]
[354244570,1740363036827,-500.0,0.00013861,2]
[354244572,1740363036836,-1397.16,0.00013861,2]
[354244574,1740363036847,-499.67901396,0.00013861,2]
[354244576,1740363036856,-502.36127575,0.00013861,2]
[354244578,1740363036866,-500.0,0.00013861,2]
[354244579,1740363036875,-500.0,0.00013861,2]
[354244581,1740363036883,-500.0,0.00013861,2]
[354244583,1740363036892,-616.68,0.00013861,2]
[354244584,1740363036902,-500.0,0.00013861,2]
[354244585,1740363036911,-524.359938,0.00013861,2]
[354244586,1740363036920,-500.0,0.00013861,2]
[354244587,1740363036929,-500.0,0.00013861,2]
[354244588,1740363036938,-320.15582485,0.00013861,2]
[354244589,1740363036948,-268.73253191,0.00013861,2]
[354244590,1740363036957,-500.0,0.00013861,2]
[354244591,1740363036966,-500.0,0.00013861,2]
[354244592,1740363036975,-924.71913227,0.00013861,2]
[354244593,1740363036987,-937.04531065,0.00013861,2]
[354244594,1740363036998,-286.75,0.00013861,2]
[354244595,1740363037010,-167.44555708,0.00013861,2]
[354244596,1740363037019,-500.0,0.00013861,2]
[354244597,1740363037028,-500.0,0.00013861,2]
[354244598,1740363037037,-500.0,0.00013861,2]
[354244599,1740363037046,-500.0,0.00013861,2]
[354244600,1740363037056,-500.0,0.00013861,2]
[354244601,1740363037065,-500.0,0.00013861,2]
[354244602,1740363037074,-500.0,0.00013861,2]
[354244603,1740363037082,-500.0,0.00013861,2]
[354244610,1740363037174,-500.0,0.00013861,2]
[354244612,1740363037183,-500.0,0.00013861,2]
[354244614,1740363037193,-502.96067849,0.00013861,2]
[354244616,1740363037202,-279.61607073,0.00013861,2]
[354244618,1740363037211,-500.0,0.00013861,2]
[354244620,1740363037220,-267.22380552,0.00013861,2]
[354244622,1740363037229,-500.0,0.00013861,2]
[354244624,1740363037237,-500.0,0.00013861,2]
[354244626,1740363037246,-500.0,0.00013861,2]
[354244628,1740363037255,-500.0,0.00013861,2]
[354244630,1740363037264,-500.0,0.00013861,2]
[354244632,1740363037273,-500.0,0.00013861,2]
[354244634,1740363037282,-500.0,0.00013861,2]
[354244636,1740363037291,-215.86138253,0.00013861,2]
[354244638,1740363037306,-284.13861747,0.00013861,2]
[354244640,1740363037315,-500.0,0.00013861,2]
[354244642,1740363037324,-788.14,0.00013861,2]
[354244644,1740363037333,-500.0,0.00013861,2]
[354244646,1740363037343,-500.0,0.00013861,2]
[354244648,1740363037352,-500.0,0.00013861,2]
[354244650,1740363037361,-501.11,0.00013861,2]
[354244652,1740363037370,-500.0,0.00013861,2]
[354244654,1740363037379,-502.6123662,0.00013861,2]
[354244656,1740363037388,-502.43593633,0.00013861,2]
[354244658,1740363037397,-500.0,0.00013861,2]
[354244660,1740363037407,-123.92217145,0.00013861,2]
[354244663,1740363037419,-376.07782855,0.00013861,2]
[354244665,1740363037428,-500.0,0.00013861,2]
[354244667,1740363037438,-1112.53,0.00013861,2]
[354244669,1740363037447,-500.0,0.00013861,2]
[354244671,1740363037456,-504.53971215,0.00013861,2]
[354244673,1740363037465,-500.0,0.00013861,2]
[354244675,1740363037474,-501.98627235,0.00013861,2]
[354244677,1740363037483,-505.86543607,0.00013861,2]
[354244679,1740363037493,-500.0,0.00013861,2]
[354244681,1740363037502,-500.0,0.00013861,2]
[354244683,1740363037511,-502.0865451,0.00013861,2]
[354244685,1740363037520,-500.0,0.00013861,2]
[354244687,1740363037529,-500.0,0.00013861,2]
[354244689,1740363037538,-506.10446772,0.00013861,2]
[354244691,1740363037547,-490.8328257,0.00013861,2]
[354244693,1740363037558,-9.1671743,0.00013861,2]
[354244695,1740363037568,-500.0,0.00013861,2]
[354244697,1740363037581,-500.0,0.00013861,2]
[354244699,1740363037590,-500.0,0.00013861,2]
[354244701,1740363037600,-500.0,0.00013861,2]
[354244703,1740363037609,-500.0,0.00013861,2]
[354244705,1740363037618,-502.28983368,0.00013861,2]
[354244707,1740363037627,-500.0,0.00013861,2]
[354244709,1740363037636,-507.2135688,0.00013861,2]
[354244711,1740363037645,-503.24103244,0.00013861,2]
[354244713,1740363037657,-500.0,0.00013861,2]
[354244715,1740363037666,-504.46905772,0.00013861,2]
[354244717,1740363037675,-182.97265339,0.00013861,2]